bitfinex/quotes_SOLUSD_20220109
["timestamp","ask_amount","ask_price","bid_price","bid_amount"]
[1641727264130,10.6951,140.36,140.33,1.78]
[1641727264328,6.06439994,140.35,140.33,1.78]
[1641727264529,28.8424317,140.35,140.33,1.78]
[1641727265030,28.8424317,140.35,140.28,1.78]
[1641727265531,39.5376317,140.35,140.27,10.6968]
[1641727265731,39.5376317,140.35,140.26,1.78]
[1641727265933,1.78,140.34,140.25,96.48]
[1641727266331,0.25,140.33,140.25,96.48]
[1641727266531,10.6997,140.3,140.25,107.1786]
[1641727266931,0.25,140.29,140.25,96.48]
[1641727267134,10.6997,140.3,140.25,94.7]
[1641727267333,1.782,140.32,140.25,94.7]
[1641727267531,10.6983,140.31,140.26,12.4803]
[1641727267733,10.9483,140.31,140.26,12.4803]
[1641727268533,3.0,140.3,140.26,12.4803]
[1641727269836,10.9483,140.31,140.26,12.4803]
[1641727271038,10.9483,140.31,140.26,10.6983]
[1641727272237,10.9483,140.31,140.25,94.7]
[1641727272437,10.9483,140.31,140.23,1.782]
[1641727273238,10.9483,140.31,140.25,10.6985]
[1641727273437,3.0,140.3,140.25,10.6985]
[1641727273637,13.6992,140.3,140.25,10.6985]
[1641727273838,0.25,140.29,140.23,1.782]
[1641727274037,0.25,140.29,140.22,1.782]
[1641727274238,3.25,140.29,140.22,2.032]
[1641727274441,0.25,140.29,140.23,13.6998]
[1641727274638,3.0,140.28,140.23,13.6998]
[1641727274837,0.25,140.29,140.22,2.032]
[1641727275038,0.25,140.29,140.24,1.78082586]
[1641727275239,35.6715,140.31,140.24,1.78082586]
[1641727275440,1.782,140.33,140.25,0.25]
[1641727275640,75.2811,140.34,140.26,1.782]
[1641727275839,10.6994,140.31,140.26,1.782]
[1641727276942,3.0,140.3,140.26,1.782]
[1641727278142,13.7001,140.3,140.26,1.782]
[1641727278341,112.7276,140.34,140.26,1.782]
[1641727278742,0.25,140.33,140.26,1.782]
[1641727279141,10.6986,140.32,140.26,1.782]
[1641727279544,10.6986,140.32,140.26,38.92836402]
[1641727279743,1.782,140.34,140.27,2.03082586]
[1641727279943,1.782,140.34,140.28,1.78]
[1641727280143,1.782,140.34,140.28,3.56082586]
[1641727280342,1.782,140.34,140.29,2.03082586]
[1641727280642,34.91314261,140.39,140.3,1.78]
[1641727280843,24.03354261,140.39,140.3,1.78]
[1641727281043,1.78,140.38,140.29,0.25]
[1641727281246,4.78,140.38,140.29,0.25]
[1641727281444,4.78,140.38,140.27,2.03]
[1641727282344,4.78,140.38,140.31,10.6943]
[1641727282544,0.25,140.37,140.31,10.6943]
[1641727286380,0.25,140.37,140.3,10.6951]
[1641727287681,17.33824937,140.38,140.31,0.25]
[1641727287887,1.86314937,140.38,140.31,5.875]
[1641727288080,1.86314937,140.38,140.34,10.6908]
[1641727288280,4.937e-05,140.38,140.35,76.0]
[1641727288480,4.937e-05,140.38,140.35,76.25]
[1641727288683,3.86735731,140.44,140.35,76.25]
[1641727289180,3.86735731,140.44,140.36,1.78]
[1641727289381,1.78,140.43,140.35,0.25]
[1641727289583,80.99615731,140.45,140.33,1.78]
[1641727290187,0.07,140.43,140.32,10.6933]
[1641727290382,1.78,140.42,140.32,10.6933]
[1641727290581,3.86735731,140.4,140.32,10.6933]
[1641727290783,29.75876039,140.4,140.32,10.6933]
[1641727290983,2.03,140.39,140.32,10.6933]
[1641727291184,10.6934,140.39,140.32,10.6933]
[1641727291384,0.25,140.38,140.33,0.25]
[1641727291583,3.25,140.38,140.32,10.6933]
[1641727291983,3.25,140.38,140.33,0.25]
[1641727292586,0.25,140.38,140.33,10.9427]
[1641727292989,0.25,140.39,140.33,10.9427]
[1641727293391,3.86735731,140.4,140.33,10.9427]
[1641727294397,7.76361081,140.42,140.33,10.9427]
[1641727294595,0.25,140.41,140.3,81.18178462]
[1641727294793,1.78,140.4,140.3,81.18178462]
[1641727294994,3.25,140.39,140.3,81.18178462]
[1641727295593,3.25,140.39,140.3,60.513]
[1641727295594,10.6953,140.37,140.3,60.513]
[1641727295793,10.6953,140.37,140.3,58.733]
[1641727295993,10.6953,140.37,140.31,2.03]
[1641727296395,3.0,140.39,140.31,2.03]
[1641727296794,3.0,140.39,140.31,12.7246]
[1641727296995,10.6923,140.41,140.31,12.7246]
[1641727297196,3.0,140.4,140.31,12.7246]
[1641727297394,3.25,140.4,140.31,12.7246]
[1641727297594,3.0,140.39,140.31,12.7246]
[1641727297994,0.25,140.4,140.31,12.7246]
[1641727299899,10.943,140.4,140.31,12.7246]
[1641727300598,3.0,140.39,140.31,12.4746]
[1641727300800,4.78,140.39,140.31,10.6946]
[1641727301003,0.25,140.38,140.32,0.25]
[1641727301206,6.86735731,140.39,140.33,10.6924]
[1641727301701,3.0,140.39,140.33,10.6924]
[1641727302503,13.6939,140.39,140.32,0.25]
[1641727302703,0.25,140.38,140.31,12.7239]
[1641727303739,14.81075731,140.39,140.31,12.7239]
[1641727303940,4.11735731,140.39,140.31,12.7239]
[1641727305142,3.86735731,140.39,140.31,12.7239]
[1641727305745,85.22315731,140.4,140.31,12.7239]
[1641727306044,83.44315731,140.4,140.31,12.7239]
[1641727306449,0.25,140.39,140.31,12.7239]
[1641727307044,4.11735731,140.39,140.31,12.7239]
[1641727307543,0.25,140.39,140.31,12.7239]
[1641727308145,83.44315731,140.4,140.31,14.50472586]
[1641727308343,3.86735731,140.4,140.31,14.50472586]
[1641727308944,3.86735731,140.42,140.31,14.50472586]
[1641727309446,0.25,140.41,140.31,14.50472586]
[1641727309945,4.11735731,140.41,140.31,14.50472586]
[1641727311246,3.0,140.4,140.31,14.50472586]
[1641727312047,4.11735731,140.41,140.31,14.50472586]
[1641727312951,4.11735731,140.41,140.32,3.0]
[1641727313161,4.11735731,140.41,140.36,10.6901]
[1641727313753,3.86735731,140.41,140.36,10.6901]
[1641727313951,3.86735731,140.41,140.37,0.25]
[1641727314362,3.86735731,140.43,140.39,10.688]
[1641727314558,3.86735731,140.43,140.4,1.78]
[1641727314761,3.86735731,140.43,140.4,29.31673206]
[1641727315159,3.86735731,140.45,140.4,64.92913206]
[1641727315459,3.86735731,140.45,140.42,10.6838]
[1641727315860,3.86735731,140.45,140.43,0.25]
[1641727316259,3.86735731,140.47,140.43,0.25]
[1641727316559,3.0,140.46,140.45,10.683]
[1641727317559,3.86735731,140.47,140.45,10.683]
[1641727317758,6.06439994,140.46,140.45,1e-08]
[1641727318358,6.06439994,140.46,140.45,10.68300001]
[1641727318558,3.86735731,140.47,140.45,10.68300001]
[1641727318961,7.8605677,140.46,140.45,10.68300001]
[1641727319362,3.86735731,140.46,140.45,10.68300001]
[1641727319560,3.86735731,140.47,140.45,10.68300001]
[1641727319960,3.86735731,140.47,140.45,1e-08]
[1641727320160,6.89955728,140.47,140.45,1e-08]
[1641727320363,0.25,140.46,140.45,1e-08]
[1641727320564,10.9381,140.46,140.45,1e-08]
[1641727320771,10.7581,140.46,140.45,1e-08]
[1641727321064,10.2581,140.46,140.45,1e-08]
[1641727321265,14.21575003,140.46,140.45,1e-08]
[1641727322291,14.46575003,140.46,140.45,1e-08]
[1641727322492,17.46575003,140.46,140.45,1e-08]
[1641727322792,4.27765003,140.46,140.45,1e-08]
[1641727322993,7.02765003,140.46,140.45,1e-08]
[1641727323793,3.07,140.46,140.45,1e-08]
[1641727324395,7.08953636,140.46,140.45,1e-08]
[1641727325096,0.07,140.46,140.45,1e-08]
[1641727327697,0.07,140.46,140.45,10.68390001]
[1641727329700,0.07,140.46,140.45,10.93390001]
[1641727329903,0.07,140.46,140.45,53.93390001]
[1641727330100,8.01328465,140.49,140.45,53.93390001]
[1641727330300,3.98823919,140.51,140.46,0.25]
[1641727330502,3.98823919,140.51,140.48,10.6804]
[1641727330899,3.98823919,140.52,140.48,10.6804]
[1641727333803,3.98823919,140.52,140.49,0.25]
[1641727334002,3.98823919,140.52,140.5,10.6773]
[1641727334203,3.98823919,140.52,140.5,17.8313]
[1641727334403,3.98823919,140.52,140.51,34.25]
[1641727334803,3.98823919,140.55,140.51,34.25]
[1641727335202,3.98823919,140.55,140.51,44.9265]
[1641727336207,3.98823919,140.55,140.51,44.6765]
[1641727337009,3.98823919,140.56,140.52,0.25]
[1641727337212,3.98823919,140.56,140.53,10.6769]
[1641727337408,3.98823919,140.56,140.52,2.028]
[1641727337609,3.98823919,140.56,140.52,0.25]
[1641727337811,8.01189099,140.57,140.5,1.778]
[1641727338009,0.25,140.56,140.49,1.778]
[1641727338210,0.25,140.56,140.51,10.6786]
[1641727338409,4.23823919,140.56,140.51,10.6786]
[1641727339114,8.01189099,140.55,140.51,1e-08]
[1641727339813,8.01189099,140.55,140.51,10.67860001]
[1641727340011,8.01189099,140.55,140.52,0.25]
[1641727340214,3.98823919,140.57,140.52,0.25]
[1641727340738,8.01189099,140.57,140.52,0.25]
[1641727340942,8.01189099,140.57,140.51,1e-08]
[1641727341439,0.25,140.56,140.51,1e-08]
[1641727341640,4.23823919,140.56,140.51,1e-08]
[1641727342639,3.98823919,140.56,140.51,1e-08]
[1641727343140,3.98823919,140.56,140.52,1.778]
[1641727343339,3.98823919,140.56,140.54,10.6762]
[1641727343742,3.98823919,140.56,140.54,39.11002318]
[1641727344540,3.98823919,140.58,140.54,39.11002318]
[1641727345140,3.98823919,140.59,140.54,39.11002318]
[1641727345440,3.98823919,140.59,140.56,10.6749]
[1641727346340,3.98823919,140.59,140.56,17.5319]
[1641727346540,3.98823919,140.59,140.56,6.857]
[1641727347141,8.00610495,140.6,140.56,6.857]
[1641727347741,8.00610495,140.6,140.56,17.5319]
[1641727349650,81.61093919,140.61,140.56,17.5319]
[1641727350050,0.25,140.6,140.54,28.43382318]
[1641727350251,1.778,140.59,140.54,28.43382318]
[1641727351055,5.76623919,140.59,140.54,28.43382318]
[1641727351455,3.98823919,140.59,140.54,26.65582318]
[1641727351859,3.98823919,140.59,140.54,37.33242318]
[1641727353059,7.96512977,140.59,140.54,37.33242318]
[1641727353756,3.98823919,140.58,140.54,37.33242318]
[1641727354258,7.96512977,140.59,140.54,37.33242318]
[1641727355863,3.98823919,140.58,140.54,37.33242318]
[1641727357463,3.98823919,140.58,140.54,10.6766]
[1641727357664,0.25,140.57,140.54,10.6766]
[1641727357864,0.25,140.57,140.51,10.67850001]
[1641727358063,2.028,140.57,140.51,1e-08]
[1641727358664,3.98823919,140.54,140.51,1e-08]
[1641727358864,6.31439994,140.53,140.51,1e-08]
[1641727359293,10.30263913,140.53,140.46,1.778]
[1641727359494,10.30263913,140.53,140.46,12.4601]
[1641727359697,5.75489058,140.52,140.46,1.778]
[1641727359895,10.6847,140.5,140.46,1.778]
[1641727360096,1.778,140.49,140.45,1e-08]
[1641727360297,2.028,140.49,140.45,1e-08]
[1641727360498,4.01309918,140.48,140.45,1e-08]
[1641727360698,6.06439994,140.47,140.45,1e-08]
[1641727360895,6.31439994,140.47,140.45,1e-08]
[1641727361497,13.6876,140.46,140.45,1e-08]
[1641727361897,3.0,140.46,140.45,1e-08]
[1641727362497,13.6872,140.46,140.45,1e-08]
[1641727362698,3.0,140.46,140.45,1e-08]
[1641727363096,3.25,140.46,140.45,1e-08]
[1641727363498,13.9371,140.46,140.45,1e-08]
[1641727363699,15.7151,140.46,140.45,1e-08]
[1641727364699,13.9371,140.46,140.45,1e-08]
[1641727368527,10.9371,140.46,140.45,1e-08]
[1641727368724,12.7151,140.46,140.45,1e-08]
[1641727368923,10.9371,140.46,140.45,1e-08]
[1641727370555,10.6871,140.46,140.45,1e-08]
[1641727370951,26.0,140.45,140.41,1.779]
[1641727371353,10.6871,140.46,140.41,1.779]
[1641727372153,10.6863,140.47,140.4,1.78]
[1641727372453,10.6863,140.47,140.41,27.61331582]
[1641727372654,0.25,140.46,140.41,27.61331582]
[1641727372852,0.25,140.46,140.41,38.29981582]
[1641727373054,0.25,140.47,140.41,27.61331582]
[1641727373253,10.6878,140.45,140.41,27.61331582]
[1641727373653,0.25,140.47,140.38,1.78]
[1641727374156,10.6878,140.45,140.39,10.6878]
[1641727374556,10.6878,140.45,140.39,35.37022909]
[1641727374756,0.25,140.47,140.39,35.37022909]
[1641727375858,3.25,140.47,140.39,35.37022909]
[1641727376765,10.687,140.46,140.39,35.37022909]
[1641727376960,0.25,140.45,140.39,35.37022909]
[1641727377161,3.25,140.47,140.4,1.78]
[1641727377360,3.25,140.47,140.41,10.6862]
[1641727377659,3.25,140.47,140.42,26.79409523]
[1641727377864,13.9362,140.47,140.39,1.78]
[1641727378864,13.9362,140.47,140.41,10.6862]
[1641727379865,10.9362,140.47,140.41,10.6862]
[1641727381568,3.0,140.46,140.41,10.6862]
[1641727381968,0.25,140.45,140.41,10.6862]
[1641727383470,77.18759918,140.48,140.41,10.6862]
[1641727383673,4.01309918,140.48,140.42,2.03]
[1641727383870,4.01309918,140.48,140.45,10.6831]
[1641727384072,4.01309918,140.5,140.45,10.6831]
[1641727384471,4.01309918,140.5,140.46,2.028]
[1641727384971,101.028,140.54,140.48,10.6814]
[1641727384972,8.03592298,140.52,140.48,10.6814]
[1641727385173,8.03592298,140.52,140.47,1.848]
[1641727385772,4.01309918,140.52,140.47,28.90698828]
[1641727386272,75.925,140.54,140.47,28.90698828]
[1641727386273,79.93809918,140.54,140.47,28.90698828]
[1641727386672,79.93809918,140.54,140.49,10.6803]
[1641727386873,4.01309918,140.54,140.49,10.6803]
[1641727387074,8.04067997,140.53,140.49,10.6803]
[1641727387277,11.04067997,140.53,140.49,10.6803]
[1641727387473,7.01309918,140.53,140.49,10.6803]
[1641727390179,4.01309918,140.53,140.49,10.6803]
[1641727391078,4.01309918,140.53,140.5,31.25199474]
[1641727391279,4.01309918,140.53,140.51,10.6768]
[1641727391878,6.06439994,140.52,140.5,35.5891]
[1641727392079,6.06439994,140.52,140.47,1.778]
[1641727392281,6.06439994,140.52,140.46,1.778]
[1641727392479,6.06439994,140.52,140.49,10.6785]
[1641727392680,26.0,140.53,140.49,12.4565]
[1641727393282,26.0,140.53,140.49,10.6785]
[1641727393882,4.01309918,140.54,140.49,10.6785]
[1641727394284,8.03633854,140.54,140.49,10.6785]
[1641727394884,8.03633854,140.55,140.49,10.6785]
[1641727395083,8.28633854,140.55,140.49,10.6785]
[1641727396286,4.26309918,140.55,140.49,10.6785]
[1641727396485,4.26309918,140.55,140.48,12.4596]
[1641727396685,1.778,140.54,140.48,12.4596]
[1641727396913,4.26309918,140.53,140.48,12.4596]
[1641727398317,4.26309918,140.53,140.48,10.6816]
[1641727398518,4.26309918,140.53,140.48,37.67495741]
[1641727398717,4.26309918,140.53,140.48,12.4596]
[1641727398917,0.25,140.53,140.48,12.4596]
[1641727399217,0.25,140.53,140.48,10.6816]
[1641727400119,4.26309918,140.53,140.48,10.6816]
[1641727400318,4.01309918,140.53,140.48,10.6816]
[1641727400818,4.01309918,140.54,140.48,10.6816]
[1641727401321,0.25,140.53,140.48,10.6816]
[1641727402519,4.26309918,140.53,140.48,10.6816]
[1641727402720,4.01309918,140.53,140.48,10.6816]
[1641727402919,0.25,140.52,140.48,10.6816]
[1641727403129,0.25,140.52,140.45,59.9913]
[1641727403130,2.028,140.52,140.47,10.6818]
[1641727403319,0.25,140.52,140.45,24.388]
[1641727403723,8.03835931,140.51,140.45,24.388]
[1641727404021,0.25,140.5,140.45,84.8858077]
[1641727404222,0.25,140.5,140.47,10.6823]
[1641727404421,0.25,140.5,140.45,24.8950077]
[1641727404620,3.25,140.5,140.45,24.8950077]
[1641727404823,1.778,140.49,140.44,1.778]
[1641727405222,0.25,140.48,140.37,79.852]
[1641727405421,1.78,140.47,140.37,79.852]
[1641727405624,1.78,140.47,140.34,23.4646]
[1641727405824,4.26309918,140.46,140.38,22.87530078]
[1641727406022,35.6362,140.44,140.34,25.24542586]
[1641727406222,1.78,140.43,140.34,1.78082586]
[1641727406425,1.78,140.45,140.33,184.2922068]
[1641727406624,0.25,140.42,140.33,186.0722068]
[1641727406823,1.78,140.41,140.33,174.8942]
[1641727407123,1.78,140.41,140.33,127.48980677]
[1641727407124,10.6931,140.38,140.33,127.48980677]
[1641727407323,10.6931,140.38,140.33,28.03560677]
[1641727407922,10.6931,140.38,140.33,1.78]
[1641727408323,10.6975,140.35,140.32,94.7]
[1641727408623,6.06439994,140.34,140.32,94.7]
[1641727408826,0.25,140.37,140.32,94.7]
[1641727409827,10.698,140.35,140.32,94.7]
[1641727410026,6.06439994,140.34,140.32,94.7]
[1641727410427,6.06439994,140.34,140.31,1.78]
[1641727410928,2.00742799,140.38,140.32,0.25]
[1641727411127,2.00742799,140.38,140.31,3.56082586]
[1641727411531,35.6527,140.39,140.31,3.56082586]
[1641727411729,1.78,140.39,140.31,1.78]
[1641727412128,0.25,140.38,140.31,1.78]
[1641727412329,3.25,140.38,140.31,1.78]
[1641727412531,3.25,140.38,140.31,12.4743]
[1641727412930,0.25,140.38,140.31,12.4743]
[1641727413329,0.25,140.39,140.31,14.25512586]
[1641727415132,0.25,140.4,140.31,14.25512586]
[1641727415332,2.03,140.4,140.31,14.25512586]
[1641727415932,3.0,140.39,140.31,14.25512586]
[1641727416133,13.6943,140.39,140.31,14.25512586]
[1641727416331,0.25,140.38,140.31,14.25512586]
[1641727418437,73.0568,140.41,140.32,0.25]
[1641727418638,2.00742799,140.42,140.36,10.6906]
[1641727419038,1.78,140.43,140.36,10.6906]
[1641727419338,25.90662799,140.44,140.36,33.55819581]
[1641727419539,2.00742799,140.44,140.36,33.55819581]
[1641727419938,2.00742799,140.44,140.35,1.78]
[1641727420139,2.00742799,140.44,140.27,60.0682068]
[1641727420140,1.85,140.43,140.27,60.0682068]
[1641727420338,3.88082586,140.43,140.27,48.8902]
[1641727420638,10.6963,140.37,140.24,81.37932586]
[1641727420838,124.9708,140.39,140.25,51.462]
[1641727421039,0.25,140.36,140.3,10.6945]
[1641727421243,0.25,140.36,140.31,27.07607583]
[1641727421637,0.25,140.36,140.31,78.53807583]
[1641727421842,12.70122799,140.39,140.32,0.25]
[1641727421843,10.6938,140.39,140.32,0.25]
[1641727422037,10.6938,140.39,140.33,1.78]
[1641727422439,10.6938,140.39,140.34,25.1775746]
[1641727423267,3.78742799,140.42,140.34,25.1775746]
[1641727423467,2.00742799,140.42,140.34,25.1775746]
[1641727423867,31.49676107,140.43,140.34,25.1775746]
[1641727424067,3.78742799,140.43,140.34,25.1775746]
[1641727424268,3.25,140.42,140.34,25.1775746]
[1641727424468,0.25,140.42,140.34,76.6395746]
[1641727424668,3.78742799,140.43,140.35,2.03]
[1641727424871,3.78742799,140.43,140.36,51.462]
[1641727425070,1.78,140.43,140.38,51.462]
[1641727425270,2.00742799,140.44,140.41,23.54221152]
[1641727425471,2.00742799,140.44,140.42,8.0923]
[1641727425669,2.00742799,140.44,140.42,18.5252]
[1641727425868,21.31133936,140.49,140.42,18.5252]
[1641727426470,2.00742799,140.5,140.42,18.5252]
[1641727426670,2.00742799,140.49,140.42,18.5252]
[1641727426869,0.25,140.48,140.42,18.5252]
[1641727427076,0.25,140.48,140.42,6.0643]
[1641727427373,1.778,140.47,140.42,6.0643]
[1641727427572,1.778,140.47,140.42,3.03219997]
[1641727427769,0.25,140.46,140.42,3.03219997]
[1641727427970,1.78,140.45,140.42,3.03219997]
[1641727428371,0.25,140.44,140.38,24.40227955]
[1641727428574,2.25742799,140.44,140.38,24.40227955]
[1641727428771,12.94902799,140.44,140.35,12.4708]
[1641727428971,1.78,140.43,140.35,12.4708]
[1641727429371,0.25,140.42,140.35,12.4708]
[1641727429772,0.25,140.42,140.36,28.50475827]
[1641727429974,0.25,140.42,140.36,39.19525827]
[1641727430973,2.03,140.42,140.36,39.19525827]
[1641727431276,2.00742799,140.41,140.36,39.19525827]
[1641727431474,0.25,140.4,140.36,39.19525827]
[1641727432578,2.00742799,140.41,140.36,39.19525827]
[1641727433980,2.00742799,140.41,140.37,1.78]
[1641727434880,2.00742799,140.4,140.37,1.78]
[1641727435082,2.00742799,140.4,140.38,6.0643]
[1641727435680,2.00742799,140.41,140.38,6.0643]
[1641727436380,2.00742799,140.4,140.39,28.36727491]
[1641727437179,4.01309918,140.43,140.39,28.36727491]
[1641727437180,2.00742799,140.42,140.39,28.36727491]
[1641727437579,2.00742799,140.41,140.4,6.0643]
[1641727437782,2.00742799,140.41,140.34,37.4111]
[1641727438380,2.00742799,140.41,140.35,0.25]
[1641727438580,2.25742799,140.4,140.36,12.4706]
[1641727438783,2.25742799,140.4,140.36,10.6906]
[1641727439181,2.00742799,140.39,140.36,10.6906]
[1641727439784,2.00742799,140.39,140.37,6.0643]
[1641727441185,2.00742799,140.39,140.37,16.7542]
[1641727441785,2.00742799,140.4,140.37,16.7542]
[1641727442487,2.00742799,140.41,140.37,16.7542]
[1641727443288,2.00742799,140.4,140.37,16.7542]
[1641727443486,2.00742799,140.4,140.37,13.72209997]
[1641727443789,2.00742799,140.41,140.37,13.72209997]
[1641727444400,2.00742799,140.4,140.38,28.73577166]
[1641727444587,2.00742799,140.4,140.39,16.7527]
[1641727446894,2.00742799,140.4,140.39,6.0643]
[1641727447493,2.25742799,140.4,140.39,6.0643]
[1641727447692,32.25742799,140.4,140.34,1.78]
[1641727447993,0.25,140.39,140.33,1.78]
[1641727448393,1.78,140.38,140.31,24.6292]
[1641727448793,0.25,140.37,140.31,24.6292]
[1641727449194,0.25,140.37,140.3,108.19321331]
[1641727449392,0.25,140.37,140.32,10.6937]
[1641727449393,1.96857185,140.36,140.32,10.6937]
[1641727449594,1.96857185,140.36,140.3,29.73231331]
[1641727449795,0.25,140.35,140.3,27.95231331]
[1641727449996,0.25,140.35,140.3,29.73231331]
[1641727450597,1.96857185,140.35,140.31,0.25]
[1641727450797,1.96857185,140.35,140.32,10.6938]
[1641727450997,1.96857185,140.35,140.33,6.0643]
[1641727451200,1.96857185,140.37,140.33,6.0643]
[1641727452200,1.96857185,140.37,140.35,10.6906]
[1641727453201,1.96857185,140.38,140.35,10.6906]
[1641727454601,1.96857185,140.38,140.34,10.6922]
[1641727455001,0.25,140.37,140.34,10.6922]
[1641727455706,2.21857185,140.37,140.34,10.6922]
[1641727456105,1.96857185,140.37,140.34,10.6922]
[1641727456306,1.96857185,140.37,140.35,6.0643]
[1641727456506,1.96857185,140.38,140.36,10.6899]
[1641727456930,1.96857185,140.39,140.36,10.6899]
[1641727457227,1.96857185,140.39,140.35,6.0643]
[1641727457228,1.96857185,140.39,140.33,30.71762163]
[1641727457728,1.96857185,140.38,140.33,41.41062163]
[1641727458428,1.96857185,140.37,140.33,41.41062163]
[1641727459833,1.96857185,140.38,140.33,41.41062163]
[1641727460029,1.96857185,140.38,140.34,12.4724]
[1641727461631,1.96857185,140.39,140.34,12.4724]
[1641727467460,0.25,140.38,140.34,12.4724]
[1641727467859,0.25,140.38,140.34,10.6924]
[1641727469687,1.96857185,140.37,140.34,10.6924]
[1641727470187,1.96857185,140.37,140.35,6.0643]
[1641727470585,1.96857185,140.37,140.32,1.78]
[1641727471789,1.96857185,140.37,140.34,10.6924]
[1641727473297,1.96857185,140.37,140.33,10.6931]
[1641727474693,1.96857185,140.37,140.34,29.98204752]
[1641727474892,1.96857185,140.37,140.34,40.67394752]
[1641727475793,1.96857185,140.37,140.33,10.6926]
[1641727475993,1.96857185,140.37,140.32,1.78]
[1641727476693,1.96857185,140.37,140.33,23.04760536]
[1641727477104,1.96857185,140.37,140.34,10.6919]
[1641727477297,1.96857185,140.37,140.35,6.0643]
[1641727478298,1.96857185,140.37,140.36,41.6908]
[1641727479337,1.96857185,140.38,140.36,66.42284733]
[1641727479934,1.96857185,140.38,140.37,49.3143]
[1641727480134,1.96857185,140.38,140.37,61.5324]
[1641727480533,1.96857185,140.39,140.37,61.5324]
[1641727480935,1.46857185,140.39,140.37,61.5324]
[1641727481338,1.46857185,140.39,140.38,0.25]
[1641727481534,1.46857185,140.39,140.38,10.9382]
[1641727481934,4.01309918,140.43,140.38,0.25]
[1641727481935,8.03071082,140.43,140.38,0.25]
[1641727482538,78.67059918,140.44,140.38,0.25]
[1641727482736,78.67059918,140.44,140.39,1.78]
[1641727483137,3.0,140.43,140.38,1.78]
[1641727483336,7.00017305,140.43,140.38,1.78]
[1641727483737,10.6918,140.42,140.38,1.78]
[1641727484338,0.25,140.41,140.36,1.78]
[1641727484736,10.6934,140.4,140.36,1.78]
[1641727485142,10.6934,140.4,140.33,1.78]
[1641727485143,2.03,140.39,140.33,1.78]
[1641727485438,25.81429082,140.39,140.29,33.60754988]
[1641727486038,25.81429082,140.39,140.29,31.82754988]
[1641727486239,7.95098757,140.38,140.29,31.82754988]
[1641727486438,10.6966,140.36,140.29,42.52354988]
[1641727486838,0.25,140.35,140.29,42.52354988]
[1641727487041,8.79309918,140.37,140.29,42.52354988]
[1641727487238,0.25,140.36,140.29,42.52354988]
[1641727487440,1.78,140.35,140.29,42.52354988]
[1641727487840,1.78,140.35,140.3,10.9449]
[1641727488040,0.25,140.36,140.31,1.78]
[1641727488241,4.01309918,140.37,140.32,0.25]
[1641727488442,83.36619918,140.39,140.31,1.78]
[1641727488742,83.36619918,140.39,140.32,28.65269231]
[1641727488941,83.36619918,140.39,140.35,10.6915]
[1641727489143,4.01309918,140.39,140.35,10.6915]
[1641727489341,4.01309918,140.39,140.33,1.78]
[1641727489542,4.01309918,140.4,140.33,1.78]
[1641727489748,1.78,140.39,140.32,28.65269231]
[1641727489943,2.03,140.39,140.35,10.6916]
[1641727490145,0.25,140.39,140.35,33.27646745]
[1641727490543,4.01309918,140.4,140.35,33.27646745]
[1641727490945,30.16337188,140.42,140.35,33.27646745]
[1641727490946,0.25,140.39,140.35,33.27646745]
[1641727492244,0.25,140.4,140.35,33.27646745]
[1641727492444,4.01309918,140.41,140.35,35.05646745]
[1641727492642,0.25,140.4,140.35,1.78]
[1641727493044,0.25,140.4,140.31,1.78]
[1641727493444,0.25,140.4,140.32,0.25]
[1641727493645,4.26309918,140.4,140.33,1.78]
[1641727493843,4.26309918,140.4,140.34,29.13381863]
[1641727494343,0.25,140.4,140.34,29.13381863]
[1641727494543,2.03,140.4,140.34,29.13381863]